bitfinex-derivatives/quotes_ETHF0:USTF0_20251210
["timestamp","ask_amount","ask_price","bid_price","bid_amount"]
[1765337606707,3.2078,3309.0,3308.9,1.4328]
[1765337607006,0.6881,3309.1,3309.0,1.8575]
[1765337607207,1.3762,3309.1,3309.0,1.8575]
[1765337607410,1.3762,3308.6,3308.5,1.1577]
[1765337607711,1.3762,3308.6,3308.5,1.8575]
[1765337607913,0.6881,3308.6,3308.5,1.8575]
[1765337608514,4.584,3309.0,3308.9,0.733]
[1765337608908,4.584,3309.0,3308.9,1.4328]
[1765337608909,3.8959,3309.0,3308.9,1.4328]
[1765337609206,3.8959,3309.0,3308.5,0.4247]
[1765337609207,1.3762,3308.6,3308.5,1.8575]
[1765337611106,3.2078,3309.0,3308.5,1.8575]
[1765337611307,1.3762,3308.6,3308.5,1.8575]
[1765337611616,0.6881,3308.6,3308.5,1.8575]
[1765337616819,4.584,3309.0,3308.9,1.4328]
[1765337617020,5.23802162,3309.0,3308.9,1.4328]
[1765337617515,4.54992162,3309.0,3308.9,1.4328]
[1765337617711,1.55087071,3309.5,3309.3,1.4328]
[1765337617712,4.584,3309.4,3309.3,1.4328]
[1765337617913,5.23818536,3309.4,3309.3,1.4328]
[1765337618515,5.23818536,3309.4,3309.3,0.733]
[1765337619624,0.6881,3309.1,3309.0,1.8575]
[1765337619923,2.03038536,3309.3,3309.2,1.4328]
[1765337620125,0.6881,3309.1,3309.0,1.8575]
[1765337620324,1.34228536,3309.3,3309.2,1.4328]
[1765337620921,0.69263193,3309.5,3309.4,0.733]
[1765337621127,1.38073193,3309.5,3309.4,1.4328]
[1765337621424,1.34674046,3309.5,3309.4,1.4328]
[1765337621627,0.69263193,3309.5,3309.4,1.4328]
[1765337623321,0.00453193,3309.5,3309.4,1.4328]
[1765337623722,0.69263193,3309.5,3309.4,1.4328]
[1765337624528,1.38073193,3309.5,3309.4,1.4328]
[1765337624727,2.30189545,3309.5,3309.4,1.4328]
[1765337628130,2.30189545,3309.5,3309.4,0.733]
[1765337628323,1.3762,3309.2,3309.1,3.9408]
[1765337628527,2.29736352,3309.2,3309.1,4.6406]
[1765337629731,2.29736352,3309.2,3309.1,3.2078]
[1765337630024,1.3762,3308.8,3308.7,4.6406]
[1765337630229,2.29736352,3308.8,3308.7,4.6406]
[1765337633227,2.29736352,3308.8,3308.7,3.9408]
[1765337634427,2.29736352,3308.8,3308.7,4.6737]
[1765337635137,0.92116352,3309.1,3309.0,1.8676]
[1765337635333,2.264162,3309.1,3309.0,1.8676]
[1765337636033,2.951462,3309.1,3309.0,1.8676]
[1765337636627,2.03029848,3309.1,3309.0,1.8676]
[1765337636827,2.951462,3309.1,3309.0,1.8676]
[1765337637034,2.03029848,3309.1,3309.0,1.8676]
[1765337637234,2.951462,3309.1,3309.0,1.8676]
[1765337637435,1.375,3308.8,3308.7,4.6664]
[1765337637633,0.6877,3309.1,3309.0,1.8676]
[1765337637828,1.34322235,3309.1,3309.0,1.8676]
[1765337638231,2.03052235,3309.1,3309.0,1.8676]
[1765337640237,2.03052235,3309.1,3309.0,0.409]
[1765337640627,2.03052235,3309.1,3309.0,1.1347]
[1765337641027,0.65552235,3309.1,3309.0,1.8676]
[1765337641536,1.34322235,3309.1,3309.0,1.8676]
[1765337642239,0.65552235,3309.1,3309.0,1.8676]
[1765337642439,1.60886352,3309.1,3309.0,1.8676]
[1765337642637,2.26438587,3309.1,3309.0,1.8676]
[1765337644434,1.57668587,3309.1,3309.0,1.8676]
[1765337644641,2.26438587,3309.1,3309.0,1.8676]
[1765337645034,0.65552235,3309.1,3309.0,1.8676]
[1765337645236,0.65552235,3309.3,3309.2,1.4586]
[1765337645441,0.00453193,3309.5,3309.4,1.4586]
[1765337646235,0.69223193,3309.5,3309.4,1.4586]
[1765337647439,1.3766,3309.2,3309.1,3.9502]
[1765337647637,1.3766,3309.2,3309.0,0.409]
[1765337647638,1.3766,3309.1,3309.0,0.409]
[1765337647840,1.3766,3308.7,3308.6,4.6432]
[1765337648241,0.6883,3308.7,3308.6,4.6432]
[1765337649042,1.60946352,3308.8,3308.7,1.4354]
[1765337649343,2.95482838,3308.8,3308.7,1.4354]
[1765337649741,2.95482838,3308.8,3308.7,0.7424]
[1765337650542,2.95482838,3308.8,3308.7,1.4354]
[1765337650743,1.34536486,3308.8,3308.7,1.4354]
[1765337650944,2.29776352,3309.3,3309.2,0.7424]
[1765337651138,1.3766,3309.1,3309.0,1.1893]
[1765337651343,2.03347452,3309.1,3309.0,1.1893]
[1765337651543,2.03347452,3309.1,3309.0,1.8823]
[1765337651948,0.65687452,3309.1,3309.0,1.8823]
[1765337652144,0.65687452,3309.2,3309.1,1.4354]
[1765337652451,1.34517452,3309.2,3309.1,1.4354]
[1765337652848,2.03347452,3309.2,3309.1,1.4354]
[1765337654042,2.03347452,3309.2,3309.0,0.4469]
[1765337654043,1.3766,3309.1,3309.0,0.4469]
[1765337654351,0.6883,3308.6,3308.5,5.0679]
[1765337654947,0.92116352,3308.9,3308.8,0.7424]
[1765337654948,2.29776352,3308.9,3308.8,0.7424]
[1765337655147,2.95471162,3308.9,3308.8,1.4354]
[1765337655949,2.95471162,3308.9,3308.8,0.7424]
[1765337656953,0.6883,3308.6,3308.5,5.0679]
[1765337657555,2.29776352,3308.6,3308.5,1.8601]
[1765337657953,2.29776352,3308.6,3308.5,1.1671]
[1765337658352,2.29776352,3308.6,3308.5,0.4247]
[1765337658555,2.95497088,3308.6,3308.5,0.4247]
[1765337659253,2.95497088,3308.6,3308.5,1.1671]
[1765337659958,2.95497088,3308.6,3308.5,1.8601]
[1765337660758,2.95497088,3308.6,3308.2,1.61674796]
[1765337660759,1.3766,3308.2,3308.1,1.4354]
[1765337660958,2.03380736,3308.2,3308.1,1.4354]
[1765337661355,1.3766,3308.1,3308.0,0.4247]
[1765337661553,2.27045448,3308.1,3308.0,1.1671]
[1765337661751,2.27045448,3308.1,3308.0,1.8601]
[1765337662356,2.27045448,3308.1,3308.0,0.4247]
[1765337662555,2.27045448,3308.1,3307.9,0.00750168]
[1765337662556,1.3766,3308.0,3307.9,0.00750168]
[1765337663462,2.27045448,3308.0,3307.9,0.00750168]
[1765337663657,1.3766,3308.0,3307.9,0.00750168]
[1765337664264,1.3766,3308.0,3307.9,0.74990168]
[1765337665964,1.3766,3308.0,3307.9,0.00750168]
[1765337666263,1.3766,3308.0,3307.9,0.70030168]
[1765337666459,1.3766,3308.0,3307.9,1.39370168]
[1765337666657,1.3766,3308.0,3307.9,0.70030168]
[1765337666965,1.3766,3308.0,3307.9,1.39370168]
[1765337667858,1.3766,3308.0,3307.9,0.70030168]
[1765337670771,1.3766,3308.0,3307.9,1.39370168]
[1765337670968,2.27045448,3308.0,3307.9,1.39370168]
[1765337671470,3.8963,3308.2,3308.1,1.3862]
[1765337671664,1.58235448,3308.2,3308.1,1.3862]
[1765337671870,2.26365448,3308.2,3308.1,1.3862]
[1765337672368,1.58235448,3308.2,3308.1,1.3862]
[1765337675169,0.89385448,3308.2,3308.1,1.3862]
[1765337676579,4.5776,3308.6,3308.5,1.8325]
[1765337676877,6.12682568,3308.6,3308.5,1.8325]
[1765337678972,5.44552568,3308.6,3308.5,1.8325]
[1765337679672,4.75702568,3308.6,3308.5,1.8325]
[1765337680079,5.44552568,3308.6,3308.5,1.8325]
[1765337684987,3.8631712,3308.6,3308.5,1.8325]
[1765337685188,3.2078,3308.6,3308.5,1.8325]
[1765337685782,4.10165448,3309.0,3308.9,1.3862]
[1765337685987,4.75787662,3309.0,3308.9,1.3862]
[1765337687386,5.44637662,3309.0,3308.9,1.3862]
[1765337687587,5.44637815,3309.0,3308.9,1.3862]
[1765337688388,4.75787815,3309.0,3308.9,1.3862]
[1765337688891,5.44637815,3309.0,3308.9,1.3862]
[1765337689991,2.23857815,3309.0,3308.9,1.3862]
[1765337690192,1.58235448,3309.0,3308.9,1.3862]
[1765337690692,1.3698,3308.7,3308.6,4.594]
[1765337691086,0.6885,3308.7,3308.6,4.594]
[1765337691387,1.58235448,3308.8,3308.7,1.3862]
[1765337697598,0.6885,3308.8,3308.7,1.3862]
[1765337697895,0.6867,3309.0,3308.9,1.4243]
[1765337698096,1.3734,3309.0,3308.9,1.4243]
[1765337698299,2.26725448,3309.0,3308.9,0.741]
[1765337699396,0.6867,3308.7,3308.6,3.9488]
[1765337699598,0.6867,3308.7,3308.6,4.6321]
[1765337700298,2.26725448,3309.0,3308.9,1.4243]
[1765337701400,2.26725448,3309.0,3308.9,0.741]
[1765337701595,1.3734,3308.7,3308.6,4.6321]
[1765337703702,0.6867,3308.7,3308.6,4.6321]
[1765337703898,1.3734,3308.7,3308.6,4.6321]
[1765337705905,1.3734,3308.7,3308.6,3.9488]
[1765337706106,1.3734,3308.7,3308.6,4.6321]
[1765337706497,1.3734,3308.7,3308.6,3.9488]
[1765337706911,1.3734,3308.7,3308.6,3.2078]
[1765337707109,0.6882,3308.3,3308.2,3.8914]
[1765337707410,1.3764,3308.3,3308.2,4.6275]
[1765337709009,1.04491448,3309.6,3308.5,1.858]
[1765337709215,0.89385448,3308.8,3308.7,1.4197]
[1765337709416,1.58205448,3308.8,3308.7,1.4197]
[1765337709714,4.5842,3309.1,3309.0,1.858]
[1765337710015,5.2390107,3309.1,3309.0,1.858]
[1765337710914,5.2390107,3309.1,3309.0,0.4383]
[1765337711310,1.3764,3308.7,3308.6,4.6275]
[1765337711918,1.3764,3308.7,3308.6,3.2078]
[1765337712311,2.27025448,3308.7,3308.6,3.8914]
[1765337713615,2.27025448,3308.7,3308.6,3.2078]
[1765337714116,2.92589648,3308.7,3308.6,3.2078]
[1765337714317,1.3764,3308.6,3308.5,1.1219]
[1765337714514,1.3764,3308.6,3308.5,1.858]
[1765337715419,1.3764,3308.6,3308.5,1.1219]
[1765337716120,1.3764,3308.6,3308.5,1.858]
[1765337717218,0.89385448,3308.7,3308.5,1.858]
[1765337717533,4.78985448,3309.1,3309.0,1.858]
[1765337717822,6.36971757,3309.1,3309.0,1.858]
[1765337718123,0.6882,3308.6,3308.5,1.858]
[1765337719225,2.27025448,3308.9,3308.8,1.4197]
[1765337719523,2.92593172,3308.9,3308.8,1.4197]
[1765337720625,1.34387724,3308.9,3308.8,1.4197]
[1765337721124,0.6882,3308.9,3308.8,1.4197]
[1765337721623,1.3764,3308.9,3308.8,0.6836]
[1765337721921,2.03207724,3308.9,3308.8,0.6836]
[1765337723227,2.03207724,3308.9,3308.8,1.4197]
[1765337723416,0.65567724,3308.9,3308.8,1.4197]
[1765337723620,0.65567724,3309.0,3308.9,1.3919]
[1765337723822,2.02887724,3309.0,3308.9,1.3919]
[1765337724022,2.02887724,3309.0,3308.9,0.6926]
[1765337724226,2.02887724,3309.0,3308.5,0.4383]
[1765337724423,2.02887724,3308.9,3308.8,0.6926]
[1765337725230,0.6866,3308.6,3308.5,1.8302]
[1765337725726,2.02887724,3308.9,3308.8,0.6926]
[1765337725926,2.02892906,3308.9,3308.8,1.3919]
[1765337728028,0.65572906,3308.9,3308.8,1.3919]
[1765337728329,1.34232906,3308.9,3308.8,1.3919]
[1765337728531,2.02892906,3308.9,3308.8,1.3919]
[1765337729326,1.34232906,3308.9,3308.8,1.3919]
[1765337729530,0.65572906,3308.9,3308.8,1.3919]
[1765337729827,1.34232906,3309.0,3308.9,1.3919]
[1765337731029,1.34239921,3309.0,3308.9,1.3919]
[1765337731728,2.02899921,3309.0,3308.9,1.3919]
[1765337732030,2.95029323,3309.0,3308.9,1.3919]
[1765337732432,2.95029323,3309.0,3308.9,0.6926]
[1765337733228,2.95029323,3309.0,3308.5,0.4383]
[1765337733530,2.02899921,3308.9,3308.8,0.6926]
[1765337733934,2.02899921,3308.9,3308.8,1.3919]
[1765337735430,1.3732,3308.6,3308.5,1.8302]
[1765337735628,2.95029323,3308.6,3308.5,1.8302]
[1765337736031,2.95029323,3308.6,3308.5,0.4383]
[1765337736735,0.6866,3308.1,3308.0,3.45494796]
[1765337736936,0.6866,3308.1,3308.0,1.8382]
[1765337737229,1.3732,3308.1,3308.0,1.8382]
[1765337737833,0.6866,3308.1,3308.0,1.8382]
[1765337738027,0.65543005,3308.2,3308.1,1.3919]
[1765337738229,2.26459079,3308.5,3308.4,1.3919]
[1765337738538,2.02863005,3308.5,3308.4,1.3919]
[1765337739236,0.65543005,3308.5,3308.4,1.3919]
[1765337739441,0.6866,3308.5,3308.4,1.3919]
[1765337739636,2.02863005,3308.5,3308.4,1.3919]
[1765337740341,2.02863005,3308.5,3308.4,0.6926]
[1765337740835,1.3732,3308.1,3308.0,1.8382]
[1765337743642,1.3732,3308.1,3308.0,1.1389]
[1765337743834,1.3732,3308.1,3308.0,1.8382]
[1765337744036,1.60789402,3308.3,3308.2,1.3919]
[1765337744232,2.94925175,3308.3,3308.2,1.3919]
[1765337744440,2.94925175,3308.3,3308.2,0.6926]
[1765337744642,1.3732,3308.1,3308.0,1.8382]
[1765337747141,1.3732,3308.1,3308.0,1.1389]
[1765337747347,1.3732,3308.1,3308.0,1.8382]
[1765337748547,0.6866,3308.1,3308.0,1.8382]
[1765337749149,2.94894675,3308.6,3308.5,0.4143]
[1765337749348,2.02765273,3308.6,3308.5,0.4143]
[1765337749744,2.02765273,3308.6,3308.5,1.8062]
[1765337750044,1.34105273,3308.6,3308.5,1.8062]
[1765337750249,2.02765273,3308.6,3308.5,1.8062]
[1765337750449,2.02765273,3308.6,3308.5,1.1069]
[1765337750942,2.02765273,3308.6,3308.5,0.4143]
[1765337751138,1.34105273,3308.6,3308.5,1.8062]
[1765337754553,2.02765273,3308.6,3308.5,1.8062]
[1765337757250,2.02765273,3308.6,3308.5,1.1069]
[1765337758956,2.02765273,3308.6,3308.5,1.8056]
[1765337760960,0.65445273,3308.6,3308.5,1.8056]
[1765337761260,1.34245273,3308.8,3308.7,1.4026]
[1765337761856,0.688,3308.8,3308.7,1.4026]
[1765337762261,1.376,3308.8,3308.7,1.4026]
[1765337762564,2.03045273,3308.8,3308.7,1.4026]
[1765337762962,1.34245273,3308.8,3308.7,1.4026]
[1765337763161,0.688,3308.8,3308.7,1.4026]
[1765337765569,1.34245273,3309.0,3308.9,1.4026]
[1765337766467,0.65445273,3309.0,3308.9,1.4026]
[1765337766963,3.2078,3309.1,3309.0,1.8696]
[1765337767167,3.86134427,3309.1,3309.0,1.8696]
[1765337767363,3.2078,3309.1,3309.0,1.8696]
[1765337769069,3.21233193,3309.5,3309.4,1.4315]
[1765337769269,3.86536601,3309.5,3309.4,1.4315]
[1765337769468,3.21233193,3309.5,3309.4,1.4315]
[1765337769766,0.00453193,3309.5,3309.4,4.6393]
[1765337770073,0.00220596,3310.0,3309.9,1.4315]
[1765337772573,0.69320596,3310.0,3309.9,1.4315]
[1765337772772,0.00220596,3310.0,3309.9,1.4315]
[1765337773174,0.69320596,3310.0,3309.9,1.4315]
[1765337773374,0.69320596,3310.0,3309.6,1.43603193]
[1765337773375,1.3802,3309.7,3309.6,1.43603193]
[1765337776380,2.30149402,3309.7,3309.6,0.00453193]
[1765337776577,1.3802,3309.7,3309.6,0.00453193]
[1765337780769,2.30149402,3309.7,3309.6,0.00453193]
[1765337782783,3.16666296,3309.7,3309.6,0.00453193]
[1765337783886,2.27343148,3309.7,3309.6,0.00453193]
[1765337784389,3.81771411,3309.7,3309.6,0.00453193]
[1765337784884,1.3838,3309.1,3309.0,3.6459]
[1765337785078,2.27703148,3309.1,3309.0,0.4381]
[1765337785282,2.27703148,3309.1,3308.6,3.2078]
[1765337785283,1.3829,3308.7,3308.6,4.6394]
[1765337785482,2.27613148,3308.7,3308.6,4.6394]
[1765337785678,2.27613148,3308.7,3308.6,3.8953]
[1765337785883,1.3829,3308.6,3308.5,1.8459]
[1765337786383,1.3829,3308.6,3308.5,0.4143]
[1765337787991,1.58333148,3308.7,3308.6,1.4316]
[1765337788486,2.27613148,3308.7,3308.6,1.4316]
[1765337789484,2.27613148,3308.7,3308.3,0.00453193]
[1765337789485,1.3829,3308.4,3308.3,0.69203193]
[1765337789791,2.27613148,3308.4,3308.3,0.69203193]
[1765337790285,2.27613148,3308.4,3308.3,1.43613193]
[1765337790494,0.6901,3308.4,3308.3,1.43613193]
[1765337790887,1.3829,3308.4,3308.3,1.43613193]
[1765337793582,0.6901,3308.4,3308.3,1.43613193]
[1765337793895,1.3829,3308.4,3308.3,1.43613193]
[1765337795193,0.6901,3308.4,3308.3,1.43613193]
[1765337795497,3.2078,3308.9,3308.8,1.4316]
[1765337795695,2.27613148,3309.2,3309.1,1.4316]
[1765337796387,0.6901,3309.2,3309.1,1.4316]
[1765337796588,1.58333148,3309.2,3309.1,1.4316]
[1765337797087,2.27613148,3309.2,3309.1,1.4316]
[1765337798490,3.2078,3309.3,3309.2,1.4316]
[1765337799895,3.8979,3309.3,3309.2,1.4316]
[1765337801597,4.5907,3309.3,3309.2,1.4316]
[1765337803800,3.8979,3309.3,3309.2,1.4316]
[1765337803996,3.2078,3309.3,3309.2,1.4316]
[1765337805402,4.5907,3309.7,3309.6,1.4316]
[1765337805602,5.24231057,3309.7,3309.6,1.4316]
[1765337805800,4.54951057,3309.7,3309.6,1.4316]
[1765337806103,3.2078,3309.7,3309.6,1.4316]
[1765337807104,0.69230596,3310.0,3309.9,1.4316]
[1765337807305,0.00220596,3310.0,3309.9,1.4316]
[1765337810206,3.07382752,3310.2,3310.1,1.4316]
[1765337810405,3.07382752,3310.2,3310.1,2.36878485]
[1765337811307,3.07733806,3310.2,3310.1,2.36878485]
[1765337811508,3.76743806,3310.2,3310.1,2.36878485]
[1765337811703,1.3829,3310.1,3310.0,1.1055]
[1765337812594,1.3829,3310.1,3310.0,0.418]
[1765337814707,1.3829,3310.1,3310.0,1.8103]
[1765337816105,1.3753,3309.6,3309.5,0.418]
[1765337817407,1.3753,3309.6,3309.5,1.0897]
[1765337818207,1.3753,3309.6,3309.5,0.418]
[1765337818406,0.1172,3310.0,3309.6,1.3765]
[1765337818407,0.93718485,3310.0,3309.6,1.3765]
[1765337818607,3.07733806,3310.2,3309.6,1.3765]
[1765337818907,0.6894,3309.7,3309.6,1.3765]
[1765337819913,1.3753,3309.7,3309.6,1.3765]
[1765337820115,0.6894,3309.7,3309.6,1.3765]
[1765337820314,1.3753,3309.7,3309.6,1.3765]
[1765337820510,1.3753,3309.7,3309.6,0.6717]
[1765337821010,1.3753,3309.7,3309.6,1.3765]
[1765337822109,1.3753,3309.7,3309.6,0.6717]
[1765337824418,1.3753,3309.6,3309.5,1.0897]
[1765337825019,1.62658485,3309.8,3309.7,1.3765]
[1765337825221,2.31248485,3309.8,3309.7,1.3765]
[1765337825614,1.3753,3309.8,3309.7,1.3765]
[1765337827822,1.3578,3309.6,3309.5,1.106]
[1765337828014,1.3578,3309.6,3309.5,1.8242]
[1765337830223,0.6792,3309.6,3309.5,1.8242]
[1765337833534,1.3578,3309.6,3309.5,1.8242]
[1765337836131,3.75653806,3310.2,3310.1,1.4062]
[1765337836332,0.00351054,3310.2,3310.1,1.4062]
[1765337836636,0.52757737,3310.5,3310.2,0.7182]
[1765337836934,3.2078,3310.6,3310.5,1.8277]
[1765337837537,3.21048763,3310.6,3310.5,1.83093568]
[1765337838033,3.21048763,3310.6,3310.5,5.03873568]
[1765337838034,0.00268763,3310.6,3310.5,5.03873568]
[1765337839434,0.00453193,3310.9,3310.8,1.4062]
[1765337840433,0.00713169,3310.9,3310.8,1.4062]
[1765337842533,0.68633169,3310.9,3310.8,1.4062]
[1765337843133,0.00713169,3310.9,3310.8,1.4062]
[1765337843340,0.69773169,3310.9,3310.8,1.4062]
[1765337844137,0.00713169,3310.9,3310.8,1.4062]
[1765337848446,4.5957,3311.9,3311.8,1.4458]
[1765337848940,4.5957,3311.9,3311.8,0.7399]
[1765337849343,0.6906,3311.6,3311.5,1.8571]
[1765337849535,0.00227109,3311.9,3311.8,1.4458]
[1765337850135,0.69287109,3311.9,3311.8,1.4458]
[1765337850336,0.00227109,3311.9,3311.8,1.4458]
[1765337850942,0.69287109,3311.9,3311.8,1.4458]
[1765337851141,1.39017109,3311.9,3311.8,1.4458]
[1765337851944,0.69287109,3311.9,3311.8,1.4458]
[1765337852649,1.39017109,3311.9,3311.8,1.4458]
[1765337853052,0.69287109,3311.9,3311.8,1.4458]
[1765337854146,1.39017109,3311.9,3311.8,1.4458]
[1765337854352,0.6906,3311.6,3311.5,1.8571]
[1765337854948,1.39017109,3311.9,3311.8,0.7399]
[1765337855147,1.39017109,3311.9,3311.8,1.4458]
[1765337856955,0.00227109,3311.9,3311.8,1.4458]
[1765337860555,1.39017109,3311.9,3311.8,0.7399]
[1765337860761,0.6906,3311.6,3311.5,1.8571]
[1765337861661,1.39017109,3311.9,3311.8,0.7399]
[1765337861855,1.39017109,3311.9,3311.8,1.4458]
[1765337863458,0.69287109,3311.9,3311.8,1.4458]
[1765337863658,1.39017109,3311.9,3311.8,1.4458]
[1765337864362,1.39017109,3311.9,3311.8,0.7399]
[1765337866962,0.6906,3311.6,3311.5,1.8571]
[1765337867462,1.3879,3311.6,3311.5,1.8571]
[1765337867765,0.6906,3311.6,3311.5,1.8571]
[1765337868060,1.39017109,3311.9,3311.8,1.4458]
[1765337868660,2.04145402,3311.9,3311.8,1.4458]
[1765337872762,2.04145402,3311.9,3311.8,0.7399]
[1765337872966,0.6906,3311.6,3311.5,1.8571]
[1765337874069,1.3879,3311.6,3311.5,1.1512]
[1765337874257,1.3879,3311.6,3311.0,5.0491]
[1765337874258,1.3711,3311.1,3311.0,5.0491]
[1765337874663,0.6985,3311.1,3311.0,5.0491]
[1765337875257,1.3711,3311.1,3311.0,5.0491]
[1765337875862,0.6985,3311.1,3311.0,5.0491]
[1765337876064,1.3711,3311.4,3311.3,1.43]
[1765337876264,1.3711,3311.7,3311.6,1.43]
[1765337876564,0.88773948,3311.7,3311.6,1.43]
[1765337876868,1.58623948,3311.7,3311.6,1.43]
[1765337877059,0.88773948,3311.7,3311.6,1.43]
[1765337877264,0.65202382,3311.7,3311.6,1.43]
[1765337877465,1.35052382,3311.7,3311.6,1.43]
[1765337878472,0.65202382,3311.7,3311.6,1.43]
[1765337879167,3.2078,3311.8,3311.7,1.43]
[1765337879370,3.86005676,3311.8,3311.7,1.43]
[1765337880675,1.63217841,3312.5,3311.7,1.43]
[1765337880676,1.63217841,3312.8,3312.0,0.15095]
[1765337880873,0.4024,3313.0,3312.7,3.2078]
[1765337881069,1.1066,3313.0,3312.7,3.2078]
[1765337881672,1.10903485,3313.0,3312.7,3.2078]
[1765337881977,1.78163485,3313.0,3312.7,3.2078]
[1765337890205,2.33945989,3312.8,3312.7,3.2078]
[1765337890798,2.33945989,3312.8,3312.5,0.00453193]
[1765337890999,2.33945989,3312.8,3312.3,3.2078]
[1765337891000,1.3981,3312.4,3312.3,3.2078]
[1765337893704,1.3981,3312.4,3312.3,4.6297]
[1765337896007,0.6997,3312.4,3312.3,4.6297]
[1765337896206,1.3981,3312.4,3312.3,4.6297]
[1765337899097,0.70423193,3312.7,3312.6,1.4219]
[1765337899495,1.40263193,3312.7,3312.6,1.4219]
[1765337899899,1.3981,3312.4,3312.3,4.6297]
[1765337900392,0.6997,3312.4,3312.3,4.6297]
[1765337900900,1.3981,3312.4,3312.3,4.6297]
[1765337901707,0.6997,3312.4,3312.3,4.6297]
[1765337902004,0.70423193,3312.7,3312.6,1.4219]
[1765337902196,0.00453193,3312.7,3312.6,1.4219]
[1765337902393,1.40263193,3312.7,3312.6,1.4219]
[1765337902797,0.70423193,3312.7,3312.6,1.4219]
[1765337903203,1.40263193,3312.7,3312.6,1.4219]
[1765337903411,1.4388,3312.1,3312.0,1.40783193]
[1765337904705,1.4388,3312.1,3312.0,0.00453193]
[1765337910108,0.7246,3312.1,3312.0,1.40783193]
[1765337910510,1.4388,3312.1,3312.0,1.40783193]
[1765337912913,0.93594906,3312.4,3312.0,1.12773193]
[1765337913111,1.4388,3312.1,3312.0,1.40783193]
[1765337915912,2.37474906,3312.4,3312.3,1.4033]
[1765337916210,3.01492186,3312.4,3312.3,1.4033]
[1765337916404,3.25037064,3312.4,3312.3,1.4033]
[1765337916607,2.31442158,3312.4,3312.3,1.4033]
[1765337916916,2.0789728,3312.4,3312.3,1.4033]
[1765337917716,0.6401728,3312.4,3312.3,1.4033]
[1765337917917,2.0789728,3312.6,3312.5,1.4033]
[1765337918517,1.3647728,3312.6,3312.5,1.4033]
[1765337918910,0.72913193,3312.7,3312.6,1.4033]
[1765337919107,1.44333193,3312.7,3312.6,0.7177]
[1765337919318,1.4388,3312.4,3312.3,4.6111]
[1765337920218,2.08003672,3312.4,3312.3,4.6111]
[1765337921812,2.08003672,3312.4,3312.3,3.2078]
[1765337922115,2.08003672,3312.4,3312.0,0.72223193]
[1765337922116,1.4388,3312.1,3312.0,0.72223193]
[1765337922315,1.4388,3312.1,3312.0,1.40783193]
[1765337924012,1.4388,3312.1,3312.0,0.72223193]
[1765337924417,1.4388,3312.1,3312.0,1.40783193]
[1765337925218,1.4388,3312.1,3312.0,0.72223193]
[1765337925412,1.4388,3312.1,3312.0,0.00453193]
[1765337925820,1.4388,3312.1,3312.0,0.72223193]
[1765337926920,2.08019564,3312.1,3312.0,0.00453193]
[1765337927813,2.08019564,3312.1,3312.0,0.72223193]
[1765337930918,2.08019564,3312.1,3312.0,1.40783193]
[1765337934525,2.08019564,3312.1,3312.0,0.71113193]
[1765337934731,2.31611464,3312.1,3312.0,1.43203193]
[1765337935133,2.31611464,3312.1,3312.0,0.71113193]
[1765337937635,2.31611464,3312.1,3312.0,1.43203193]
[1765337938635,2.08019564,3312.1,3312.0,1.43203193]
[1765337939836,2.08019564,3312.1,3312.0,0.71113193]
[1765337941139,2.31611493,3312.1,3312.0,0.00453193]
[1765337942433,2.31611493,3312.1,3312.0,0.71113193]
[1765337942740,2.31611493,3312.1,3312.0,1.43203193]
[1765337943039,2.08019564,3312.1,3312.0,1.43203193]
[1765337945737,1.36599564,3312.1,3312.0,1.85443193]
[1765337945933,0.64139564,3312.1,3312.0,0.42693193]
[1765337946139,2.28660407,3312.3,3312.2,1.3903]
[1765337946733,1.4093,3312.1,3312.0,1.39483193]
[1765337947133,2.05069564,3312.1,3312.0,1.39483193]
[1765337947439,2.05069564,3312.1,3312.0,0.00453193]
[1765337947641,2.05069564,3312.1,3312.0,1.39483193]
[1765337948042,2.05069564,3312.1,3312.0,1.81723193]
[1765337949042,2.05069564,3312.1,3312.0,1.39483193]
[1765337949442,2.28666929,3312.1,3312.0,0.69953193]
[1765337949743,2.28666929,3312.1,3312.0,0.00453193]
[1765337951234,1.4093,3311.3,3311.2,1.61595852]
[1765337951438,1.4093,3311.2,3311.1,3.2078]
[1765337951638,2.05069564,3311.2,3311.1,4.5981]
[1765337952443,2.05069564,3311.2,3311.1,3.9028]
[1765337953240,1.4093,3311.2,3311.1,3.9028]
[1765337953840,1.4093,3311.2,3311.1,4.5981]
[1765337954848,0.7233,3311.2,3311.1,4.5981]
[1765337956146,0.64035931,3311.4,3311.3,1.3903]
[1765337956341,0.95903556,3311.9,3311.8,1.3903]
[1765337956535,1.36365931,3311.9,3311.8,1.3903]
[1765337956740,0.7233,3311.9,3311.8,1.3903]
[1765337956945,1.4093,3311.9,3311.8,1.3903]
[1765337957148,2.04965931,3311.9,3311.8,1.3903]
[1765337958044,2.04965931,3311.9,3311.8,0.695]
[1765337958250,1.4093,3311.6,3311.5,0.695]
[1765337959046,1.8295,3311.5,3311.4,0.695]
[1765337959351,1.4093,3311.2,3311.1,4.5981]
[1765337959550,1.4093,3311.2,3311.1,3.9028]
[1765337960148,1.4093,3311.2,3311.1,4.5981]
[1765337961748,1.4093,3311.2,3311.1,3.9028]
[1765337961951,1.4093,3310.9,3310.8,0.69953193]
[1765337962154,1.4093,3310.9,3310.8,1.39483193]
[1765337970870,1.4093,3310.9,3310.8,1.46773193]
[1765337971664,4.597,3311.3,3311.2,1.4632]
[1765337971866,1.3892,3311.1,3311.0,1.4632]
[1765337973164,3.2078,3311.3,3311.2,1.4632]
[1765337973367,3.84719122,3311.3,3311.2,1.4632]
[1765337974265,4.56069122,3311.3,3311.2,1.4632]
[1765337977669,4.597,3311.7,3311.6,1.4632]
[1765337977872,5.47417259,3311.7,3311.6,1.4632]
[1765337979971,2.26637259,3311.7,3311.6,1.4632]
[1765337980873,2.26637259,3311.7,3311.6,0.7322]
[1765337981373,2.26698129,3311.7,3311.6,0.7322]
[1765337982373,2.26698129,3311.7,3311.6,1.4632]
[1765337982575,1.59128129,3311.7,3311.6,1.4632]